{"text_format":"1","workbook":"xlsx","n_sheets":2,"sheets":["Списание материалов","итог"],"not_rendered":{"charts":0,"images":0,"macros":1,"external_links":0,"defined_names":2,"comments":0,"pivot_tables":0},"unopened":[],"bounds":{"document_bytes":16777216,"sheet_cells":100000,"rows_first":2000,"rows_last":500,"rows_between":2000,"halvings":0,"cell_chars":16384,"cell_head_chars":4096},"cells_cut":0,"cells_raw":0,"read":"whole","date_system":"1900"}

{"sheet":"Списание материалов","index":0,"n_rows":45,"n_cols":8,"rows_kept":45,"cut":false,"hidden":false,"merged":[[16,0,16,7],[7,0,7,7],[8,0,8,7],[9,0,9,7],[10,0,10,7],[11,0,11,7],[15,0,15,7]]}
["Заказчик:",null,null,null,null,null,null,"Приложение №3"]
["Подрядчик:",null,null,null,null,null,null,"Отчёт по ф. М29"]
["Субподрядчик:",null,null,null,"             Утверждаю:"]
[]
[]
[null,null,null,null,"            \"___\"_________________2016г"]
[]
["ОТЧЁТ № 2-28-5 Ф ЯМ"]
["о расходе основных материалов в строительстве"]
["в сопоставлении с производственными нормами по объекту (площадке)"]
["ДКС сеноманской залежи Песцовой площади Уренгойского НГКМ.  2 этап строительства"]
[]
[]
[]
[]
["4-17-1 изм.1"]
["ФЕВРАЛЬ 2016г."]
["П/п","Наименование ресурса","Единица измерения","Расход по норме","Фактич. количество","Экономия (+), перерасход (-)","Списать на себестоимость","Код материала"]
[1,2,3,4,5,6,7,8]
[1,"Кислород","м3",3.3176000000000001,null,null,null,{"$f":"IF(E20-D20>0,E20-D20,\"\")","v":""}]
[{"$f":"1+A20","v":2},"Уайт-спирит","кг",42,null,null,null,""]
[3,"Электроды","кг",7,null,null,null,""]
[4,"Электроды","кг",7,null,null,null,""]
[5,"Ветошь","кг",3.71,null,null,null,""]
[6,"Песок металлический","т",0.44519999999999998,null,null,null,""]
[7,"Пропан","кг",0.25609999999999999,null,null,null,""]
["                  Материалы - позиции сметы"]
[8,"...","т",10.663500000000001,null,null,null,{"$f":"IF(E28-D28>0,E28-D28,\"\")","v":""}]
[9,"М/к труб стальных бесшовных горячедеформированных, ГОСТ 8732-78, ГОСТ 8731-74, наружный диаметр (толщина стенки) -219(8) мм, из стали марки 20","т",9.7309999999999999,null,null,null,""]
[]
[10,"М/к труб 273х8 В 8731-74, 8732-78, 100% НМК по МЗИ, фаска, г/г 09Г2С (трубы обсадные)","т",0.1565,null,null,null,""]
[11,"М/к конструкций стальных индивидуальных листовых сварных из стали толщиной 3-10мм массой до 0.1т","т",0.38800000000000001,null,null,null,""]
[null,"…"]
[12,"Доплата к базисным ценам на металл. Класс стали С345","т",0.38800000000000001,null,null,null,""]
[13,"Раствор готовый кладочный цементный М100","м3",12.1448,null,null,null,""]
[14,"Грунт-эмаль \"СБЭ-111 \"Унипол марки \"Б\" ТУ","кг",31.76,null,null,null,""]
[]
[]
["Исполнитель ______________________________________________/                                                             /"]
[]
["Начальник строительного участка (прораб) ___________________/                                                             /"]
[]
["Проверил ведущий инженер ПТО_____________________________/                                                             /"]
[]
["Проверил бухгалтер _______________________________________/                                                             /"]

{"sheet":"итог","index":1,"n_rows":45,"n_cols":8,"rows_kept":45,"cut":false,"hidden":false,"merged":[[15,0,15,7],[16,0,16,7],[7,0,7,7],[8,0,8,7],[9,0,9,7],[11,0,11,7],[10,0,10,7]]}
["Заказчик:",null,null,null,null,null,null,"Приложение №3"]
["Подрядчик:",null,null,null,null,null,null,"Отчёт по ф. М29"]
["Субподрядчик:",null,null,null,"             Утверждаю:"]
[]
[]
[null,null,null,null,"            \"___\"_________________2016г"]
[]
["ОТЧЁТ № 2-28-5 Ф ЯМ"]
["о расходе основных материалов в строительстве"]
["в сопоставлении с производственными нормами по объекту (площадке)"]
["ДКС сеноманской залежи Песцовой площади Уренгойского НГКМ.  2 этап строительства"]
[]
[]
[]
[]
["4-17-1 изм.1"]
["ФЕВРАЛЬ 2016г."]
["П/п","Наименование ресурса","Единица измерения","Расход по норме","Фактич. количество","Экономия (+), перерасход (-)","Списать на себестоимость","Код материала"]
[1,2,3,4,5,6,7,8]
[8,"...","т",10.663500000000001,null,null,null,{"$f":"IF(E20-D20>0,E20-D20,\"\")","v":""}]
[9,"М/к труб стальных бесшовных горячедеформированных, ГОСТ 8732-78, ГОСТ 8731-74, наружный диаметр (толщина стенки) -219(8) мм, из стали марки 20","т",9.7309999999999999,null,null,null,""]
[]
[10,"М/к труб 273х8 В 8731-74, 8732-78, 100% НМК по МЗИ, фаска, г/г 09Г2С (трубы обсадные)","т",0.1565,null,null,null,""]
[11,"М/к конструкций стальных индивидуальных листовых сварных из стали толщиной 3-10мм массой до 0.1т","т",0.38800000000000001,null,null,null,""]
[null,"…"]
[12,"Доплата к базисным ценам на металл. Класс стали С345","т",0.38800000000000001,null,null,null,""]
[13,"Раствор готовый кладочный цементный М100","м3",12.1448,null,null,null,""]
[14,"Грунт-эмаль \"СБЭ-111 \"Унипол марки \"Б\" ТУ","кг",31.76]
[1,"Кислород","м3",3.3176000000000001,null,null,null,{"$f":"IF(E29-D29>0,E29-D29,\"\")","v":""}]
[{"$f":"1+A29","v":2},"Уайт-спирит","кг",42,null,null,null,""]
[3,"Электроды","кг",7,null,null,null,""]
[4,"Электроды","кг",7,null,null,null,""]
[5,"Ветошь","кг",3.71,null,null,null,""]
[6,"Песок металлический","т",0.44519999999999998,null,null,null,""]
[7,"Пропан","кг",0.25609999999999999,null,null,null,""]
["                  Материалы - позиции сметы"]
[]
[]
["Исполнитель ______________________________________________/                                                             /"]
[]
["Начальник строительного участка (прораб) ___________________/                                                             /"]
[]
["Проверил ведущий инженер ПТО_____________________________/                                                             /"]
[]
["Проверил бухгалтер _______________________________________/                                                             /"]